Workbook

Sheet Schakelblad - Onglet orientatio (hidden)
B2: Schakelblad - Onglet orientation
C4: 1. Statistieken VVM - Statistiques VVM
D5: 1.1 VTE's - ETP's | F5: 2007-2014 (jaarlijks - annuel)
D6: 1.2 Omzet - Chiffres d'affaires | F6: 2015 (maandelijks - mensuel)
C7: 2. Statistieken SRWT - Statistiques SRWT
D8: 1.1 VTE's - ETP's | F8: 2010-2014 (jaarlijks - annuel)
D9: 1.2 Omzet - Chiffres d'affaires | F9: 2015 (maandelijks - mensuel)
C10: 3. | D10: Indexen - Indices

Sheet 1.1 VVM - 2007-2023
B2: Cijfers geregelde diensten - Statistiques services réguliers (VVM)
D4: Variabele | G4: Onderdeel | H4: Jaar
H5: 2007 | I5: 2008 | J5: 2009 | K5: 2010 | L5: 2011 | M5: 2012 | N5: 2013 | O5: 2014 | P5: 2015 | Q5: 2016 | R5: 2017 | S5: 2018 | T5: 2019 | U5: 2020 | V5: 2021 | W5: 2022 | X5: 2023
D6: VTE's - ETPs (31/12) | E6: Bruto Cijfers - Chiffres Brut | G6: Antwerpen - Anvers | J6: 701 | K6: 697 | L6: 680 | M6: 610 | N6: 609.9 | O6: 618 | P6: 598.5 | Q6: 598.5 | R6: 585 | S6: 602.3 | T6: 606.1 | U6: 604.2 | V6: 606.1 | W6: 608 | X6: 619.4
G7: Oost-Vlaanderen - Flandre Orientale | J7: 534 | K7: 530 | L7: 534 | M7: 530 | N7: 530.1 | O7: 532 | P7: 530.1 | Q7: 530.1 | R7: 523 | S7: 535.8 | T7: 556.7 | U7: 552.9 | V7: 558.6 | W7: 543.4 | X7: 547.2
G8: Vlaams Brabant - Brabant Flamand | J8: 610 | K8: 638 | L8: 654 | M8: 625 | N8: 625.1 | O8: 604 | P8: 608 | Q8: 611.8 | R8: 614 | S8: 623.2 | T8: 647.9 | U8: 628.9 | V8: 636.5 | W8: 638.4 | X8: 600.4
G9: Limburg - Limbourg | J9: 568 | K9: 557 | L9: 559 | M9: 564 | N9: 564.3 | O9: 559 | P9: 549.1 | Q9: 549.1 | R9: 540 | S9: 535.8 | T9: 539.6 | U9: 535.8 | V9: 535.8 | W9: 535.8 | X9: 537.7
G10: West-Vlaanderen - Flandre Occidentale | J10: 365 | K10: 380 | L10: 380 | M10: 363 | N10: 355.3 | O10: 355 | P10: 351.5 | Q10: 351.5 | R10: 352 | S10: 347.7 | T10: 347.7 | U10: 355.3 | V10: 353.4 | W10: 349.6 | X10: 343.9
G11: Groep - Groupe | J11: 2778 | K11: 2803 | L11: 2806 | M11: 2692 | N11: 2685 | O11: 2668 | P11: 2637 | Q11: =SUM(Q6:Q10) -> 2641 | R11: 2614 | S11: 2644.8 | T11: 2698 | U11: 2677.1 | V11: =SUM(V6:V10) -> 2690.4 | W11: 2675.2 | X11: =SUM(X6:X10) -> 2648.6
E12: Veranderingspercentages - taux de changement | G12: Antwerpen - Anvers | J12: - | K12: =(K6-J6)/J6 -> -0.005706134094 | L12: =(L6-K6)/K6 -> -0.0243902439 | M12: -0.1029411765 | N12: =(N6-M6)/M6 -> -0.0001639344262 | O12: =(O6-N6)/N6 -> 0.01328086572 | P12: =(P6-O6)/O6 -> -0.03155339806 | Q12: 0 | R12: -0.02255639098 | S12: 0.02957264957 | T12: 0.006309148265 | U12: =(U6-T6)/T6 -> -0.003134796238 | V12: =(V6-U6)/U6 -> 0.003144654088 | W12: =(W6-V6)/V6 -> 0.003134796238 | X12: =(X6-W6)/W6 -> 0.01875
G13: Oost-Vlaanderen - Flandre Orientale | J13: - | K13: =(K7-J7)/J7 -> -0.007490636704 | L13: 0.007547169811 | M13: -0.007490636704 | N13: 0.0001886792453 | O13: =(O7-N7)/N7 -> 0.003584229391 | P13: =(P7-O7)/O7 -> -0.003571428571 | Q13: =(Q7-P7)/P7 -> 0 | R13: =(R7-Q7)/Q7 -> -0.0133936993 | S13: 0.02447418738 | T13: 0.0390070922 | U13: -0.006825938567 | V13: 0.01030927835 | W13: =(W7-V7)/V7 -> -0.02721088435 | X13: 0.006993006993
G14: Vlaams Brabant - Brabant Flamand | J14: - | K14: 0.04590163934 | L14: 0.02507836991 | M14: -0.04434250765 | N14: 0.00016 | O14: -0.03375459926 | P14: 0.006622516556 | Q14: 0.00625 | R14: 0.003595946388 | S14: 0.01498371336 | T14: 0.03963414634 | U14: -0.0293255132 | V14: 0.01208459215 | W14: 0.002985074627 | X14: -0.05952380952
G15: Limburg - Limbourg | J15: - | K15: -0.01936619718 | L15: 0.003590664273 | M15: 0.008944543828 | N15: 0.0005319148936 | O15: -0.009392167287 | P15: -0.01771019678 | Q15: 0 | R15: -0.0165725733 | S15: -0.007777777778 | T15: 0.007092198582 | U15: -0.007042253521 | V15: 0 | W15: 0 | X15: 0.003546099291
G16: West-Vlaanderen - Flandre Occidentale | J16: - | K16: 0.04109589041 | L16: 0 | M16: -0.04473684211 | N16: -0.02121212121 | O16: -0.0008443568815 | P16: -0.00985915493 | Q16: 0 | R16: 0.001422475107 | S16: -0.01221590909 | T16: 0 | U16: 0.0218579235 | V16: -0.005347593583 | W16: -0.01075268817 | X16: -0.01630434783
G17: Groep - Groupe | J17: - | K17: 0.008999280058 | L17: 0.001070281841 | M17: -0.04062722737 | N17: -0.002600297177 | O17: -0.006331471136 | P17: -0.0116191904 | Q17: 0.001516875237 | R17: -0.01022340023 | S17: 0.01178270849 | T17: 0.02011494253 | U17: -0.007746478873 | V17: 0.004968062456 | W17: =(W11-V11)/V11 -> -0.005649717514 | X17: =(X11-W11)/W11 -> -0.009943181818
D18: Afgelegde kilometers - Kilomètres parcourus - geregeld | E18: Brutocijfers - Chiffres Brut | G18: Antwerpen - Anvers | H18: 18082086 | I18: 18721969 | J18: 19628634 | K18: 19721804 | L18: 19355235 | M18: 18796105 | N18: 17717039 | O18: 17953890 | P18: 17611472 | Q18: 17641224 | R18: 17607031 | S18: 17830376 | T18: 18059691 | U18: 16976052
G19: Oost-Vlaanderen - Flandre Orientale | H19: 15702815 | I19: 15914458 | J19: 16537541 | K19: 16456913 | L19: 16347583 | M19: 15193350 | N19: 14382523 | O19: 14131017 | P19: 14429579 | Q19: 14255052 | R19: 14116709 | S19: 14249546 | T19: 14922238 | U19: 11088936
G20: Vlaams Brabant - Brabant Flamand | H20: 17490577 | I20: 20620992 | J20: 21362141 | K20: 21411437 | L20: 22458396 | M20: 20851629 | N20: 20557201 | O20: 20236320 | P20: 19946338 | Q20: 19963082 | R20: 20091609 | S20: 19887910 | T20: 20338973 | U20: 19048286
G21: Limburg - Limbourg | H21: 14739380 | I21: 15703251 | J21: 16045056 | K21: 16096102 | L21: 15887721 | M21: 14781810 | N21: 14202459 | O21: 13813302 | P21: 13486547 | Q21: 13147590 | R21: 12801275 | S21: 13153494 | T21: 13563226 | U21: 11580807
G22: West-Vlaanderen - Flandre Occidentale | H22: 10215171 | I22: 11163551 | J22: 11443273 | K22: 11358328 | L22: 10969718 | M22: 10393642 | N22: 9619866 | O22: 9560128 | P22: 9621959 | Q22: 9539023 | R22: 9328669 | S22: 9639998 | T22: 9692188 | U22: 7343947
G23: Groep - Groupe | H23: 76230029 | I23: 82124221 | J23: 85016645 | K23: 85044584 | L23: 85018653 | M23: 80016536 | N23: 76479088 | O23: 75694657 | P23: 75095895 | Q23: 74545970 | R23: =SUM(R18:R22) -> 73945293 | S23: =SUM(S18:S22) -> 74761324 | T23: =SUM(T18:T22) -> 76576316 | U23: =SUM(U18:U22) -> 66038028 | V23: 77072360 | W23: 74713353 | X23: 74661487
E24: Veranderingspercentages - taux de changement | G24: Antwerpen - Anvers | H24: - | I24: =(I18-H18)/H18 -> 0.03538767596 | J24: 0.04842786568 | K24: 0.004746636979 | L24: -0.01858699133 | M24: -0.02888779186 | N24: =(N18-M18)/M18 -> -0.05740902171 | O24: 0.01336854313 | P24: -0.01907207853 | Q24: 0.001689353394 | R24: =(R18-Q18)/Q18 -> -0.001938244194 | S24: 0.01268498931 | T24: 0.0128609178 | U24: =(U18-T18)/T18 -> -0.0600031861 | W24: =(W18-U18)/U18 -> -1
G25: Oost-Vlaanderen - Flandre Orientale | H25: - | I25: 0.01347802926 | J25: 0.03915200882 | K25: -0.004875452765 | L25: -0.006643408761 | M25: -0.07060572808 | N25: =(N19-M19)/M19 -> -0.05336722974 | O25: -0.01748691798 | P25: 0.02112813253 | Q25: -0.01209508607 | R25: -0.009704840081 | S25: 0.009409912749 | T25: 0.04720796017 | U25: -0.2568851938 | W25: -1
G26: Vlaams Brabant - Brabant Flamand | H26: - | I26: 0.1789772287 | J26: 0.03594148138 | K26: 0.002307633865 | L26: 0.04889718518 | M26: -0.07154415658 | N26: =(N20-M20)/M20 -> -0.0141201438 | O26: -0.01560917753 | P26: -0.01432977933 | Q26: 0.0008394523346 | R26: 0.006438234337 | S26: -0.01013851106 | T26: 0.02268026153 | U26: -0.06345880886 | W26: -1
G27: Limburg - Limbourg | H27: - | I27: 0.06539427032 | J27: 0.02176651192 | K27: 0.003181416132 | L27: -0.01294605365 | M27: -0.06960790663 | N27: =(N21-M21)/M21 -> -0.03919350878 | O27: -0.02740067759 | P27: -0.02365509709 | Q27: -0.0251329714 | R27: -0.02634056888 | S27: 0.02751436869 | T27: 0.03115005032 | U27: -0.1461613188 | W27: -1
G28: West-Vlaanderen - Flandre Occidentale | H28: - | I28: 0.09284034501 | J28: 0.02505672254 | K28: -0.007423138467 | L28: -0.03421366243 | M28: -0.05251511479 | N28: =(N22-M22)/M22 -> -0.07444705138 | O28: -0.006209857809 | P28: 0.006467591229 | Q28: -0.008619450571 | R28: -0.02205194389 | S28: 0.03337335691 | T28: 0.005413901538 | U28: -0.2422818253 | W28: -1
G29: Groep - Groupe | H29: - | I29: 0.07732113023 | J29: 0.03522010882 | K29: 0.0003286297642 | L29: -0.0003049106572 | M29: -0.05883552401 | N29: =(N23-M23)/M23 -> -0.04420896201 | O29: -0.01025680379 | P29: -0.007910228063 | Q29: -0.007322970184 | R29: -0.008057806478 | S29: 0.01103560439 | T29: =(T23-S23)/S23 -> 0.02427715165 | U29: =(U23-T23)/T23 -> -0.1376181116 | V29: =(V23-U23)/U23 -> 0.1670905739 | W29: =(W23-V23)/V23 -> -0.03060769127 | X29: =(X23-W23)/W23 -> -0.0006941998708
D30: Leerlingenvervoer (km) | G30: Antwerpen - Anvers | H30: 4477469 | I30: 4708357 | J30: 5044255 | K30: 5237866 | L30: 5275221 | M30: 5307544 | N30: 5456955 | O30: 5353774 | P30: 5492565 | Q30: 5639067 | R30: 5360198 | S30: 5373852 | T30: 5348585 | U30: 4121447
G31: Oost-Vlaanderen - Flandre Orientale | H31: 4196514 | I31: 4322464 | J31: 4498282 | K31: 4626964 | L31: 4582534 | M31: 4545511 | N31: 4497633 | O31: 4314208 | P31: 4552179 | Q31: 4888492 | R31: 4454220 | S31: 4434518 | T31: 4482394 | U31: 3902938
G32: Vlaams Brabant - Brabant Flamand | H32: 2946392 | I32: 3015959 | J32: 3044303 | K32: 3163755 | L32: 3133845 | M32: 3121568 | N32: 3116611 | O32: 3099428 | P32: 3057339 | Q32: 3121812 | R32: 3001680 | S32: 2691733 | T32: 2952690 | U32: 2347814
G33: Limburg - Limbourg | H33: 3076992 | I33: 3168953 | J33: 3238775 | K33: 3320587 | L33: 3218246 | M33: 3208349 | N33: 3335177 | O33: 3226092 | P33: 3216405 | Q33: 3228736 | R33: 3073148 | S33: 3091243 | T33: 3161921 | U33: 2415178
G34: West-Vlaanderen - Flandre Occidentale | H34: 3911176 | I34: 4057774 | J34: 4103942 | K34: 4288628 | L34: 4187099 | M34: 4161170 | N34: 4116588 | O34: 4099877 | P34: 4205292 | Q34: 4277366 | R34: 4093789 | S34: 4067651 | T34: 4026545 | U34: 3053098
G35: Groep - Groupe | H35: =SUM(H30:H34) -> 18608543 | I35: 19273507 | J35: 19929557 | K35: 20637800 | L35: 20396945 | M35: 20344142 | N35: =SUM(N30:N34) -> 20522964 | O35: 20093379 | P35: 20523780 | Q35: 21155473 | R35: =SUM(R30:R34) -> 19983035 | S35: =SUM(S30:S34) -> 19658997 | T35: =SUM(T30:T34) -> 19972135 | U35: =SUM(U30:U34) -> 15840475 | V35: 21570303 | W35: 23792533 | X35: 25830381
D37: Omzet - Chiffre d'affaires | E37: Nominaal - Nominale | F37: Brutocijfers - chiffres brut | G37: Groep - Groupe | H37: 236202900 | I37: 250881900 | J37: 262061700 | K37: 268987000 | L37: 274851000 | M37: 277778000 | N37: 276535348 | O37: 278018992 | P37: 271509000 | Q37: 269754000 | R37: 279556000 | S37: 286962000 | T37: 301080000 | U37: 307122000 | V37: 330385000 | W37: =326526000 -> 326526000 | X37: =353617000 -> 353617000
F38: Brutocijfers - chiffres brut | G38: Leerlingenvervoer | T38: 68315000 | U38: 64029000 | V38: 76454000 | W38: 102322000 | X38: 136373000
F39: Veranderingspercentages - taux de changement | G39: Groep - Groupe | H39: - | I39: =(I37-H37)/H37 -> 0.06214572302 | J39: 0.04456200308 | K39: 0.02642621947 | L39: 0.02180031005 | M39: 0.01064940641 | N39: -0.004473543621 | O39: 0.005365115204 | P39: -0.02341563773 | Q39: -0.006463874126 | R39: 0.03633681058 | S39: 0.02649200876 | T39: 0.04919815167 | U39: 0.02006775608 | V39: 0.07574514362 | W39: =(W37-V37)/V37 -> -0.01168031236 | X39: =(X37-W37)/W37 -> 0.08296735941
E41: SKP correctie - correction PRS1 | F41: Brutocijfers - chiffres brut | G41: Groep - Groupe | H41: =H37/'3. Indexes'!D$22*'3. Indexes'!$D$22 -> 236202900 | I41: =I37/'3. Indexes'!E$22*'3. Indexes'!$D$22 -> 238614275.4 | J41: =J37/'3. Indexes'!F$22*'3. Indexes'!$D$22 -> 241653459.6 | K41: =K37/'3. Indexes'!G$22*'3. Indexes'!$D$22 -> 242855736.2 | L41: =L37/'3. Indexes'!H$22*'3. Indexes'!$D$22 -> 238945646.2 | M41: =M37/'3. Indexes'!I$22*'3. Indexes'!$D$22 -> 232373109.6 | N41: =N37/'3. Indexes'!J$22*'3. Indexes'!$D$22 -> 225807896.9 | O41: =O37/'3. Indexes'!K$22*'3. Indexes'!$D$22 -> 226447848.9 | P41: =P37/'3. Indexes'!L$22*'3. Indexes'!$D$22 -> 227444790.1 | Q41: =Q37/'3. Indexes'!M$22*'3. Indexes'!$D$22 -> 229950145.9 | R41: =R37/'3. Indexes'!N$22*'3. Indexes'!$D$22 -> 231139173.2 | S41: =S37/'3. Indexes'!O$22*'3. Indexes'!$D$22 -> 230762628.9 | T41: =T37/'3. Indexes'!P$22*'3. Indexes'!$D$22 -> 236209975.6 | U41: =U37/'3. Indexes'!Q$22*'3. Indexes'!$D$22 -> 235018365.5 | V41: =V37/'3. Indexes'!R$22*'3. Indexes'!$D$22 -> 252819865.3 | W41: =W37/'3. Indexes'!S$22*'3. Indexes'!$D$22 -> 237508001.2 | X41: =X37/'3. Indexes'!T$22*'3. Indexes'!$D$22 -> 230880778.3
F43: Veranderingspercentages - taux de changement | G43: Groep - Groupe | H43: - | I43: =(I41-H41)/H41 -> 0.01020891529 | J43: 0.01273680795 | K43: 0.004975209508 | L43: -0.01610046381 | M43: -0.02750640853 | N43: -0.02825289337 | O43: 0.002834054807 | P43: 0.004402520179 | Q43: 0.01101522593 | R43: 0.005170805027 | S43: =(S41-R41)/R41 -> -0.001629080426 | T43: =(T41-S41)/S41 -> 0.02360584406 | U43: =(U41-T41)/T41 -> -0.005044706935 | V43: =(V41-U41)/U41 -> 0.07574514362 | W43: =(W41-V41)/V41 -> -0.06056432368 | X43: =(X41-W41)/W41 -> -0.02790315636
E45: CPI-correctie - correction IPC2 | F45: Brutocijfers - chiffres brut | G45: Groep - Groupe | H45: =H37/'3. Indexes'!D$23*'3. Indexes'!$D$23 -> 236202900 | I45: =I37/'3. Indexes'!E$23*'3. Indexes'!$D$23 -> 240096323 | J45: =J37/'3. Indexes'!F$23*'3. Indexes'!$D$23 -> 250933447.4 | K45: =K37/'3. Indexes'!G$23*'3. Indexes'!$D$23 -> 252046813.2 | L45: =L37/'3. Indexes'!H$23*'3. Indexes'!$D$23 -> 248757731.5 | M45: =M37/'3. Indexes'!I$23*'3. Indexes'!$D$23 -> 244467109.4 | N45: =N37/'3. Indexes'!J$23*'3. Indexes'!$D$23 -> 240696366.9 | O45: =O37/'3. Indexes'!K$23*'3. Indexes'!$D$23 -> 241167760.3 | P45: =P37/'3. Indexes'!L$23*'3. Indexes'!$D$23 -> 234213512 | Q45: =Q37/'3. Indexes'!M$23*'3. Indexes'!$D$23 -> 228198932.5 | R45: =R37/'3. Indexes'!N$23*'3. Indexes'!$D$23 -> 230662188.3 | S45: =S37/'3. Indexes'!O$23*'3. Indexes'!$D$23 -> 232670446.9 | T45: =T37/'3. Indexes'!P$23*'3. Indexes'!$D$23 -> 240598633.9 | U45: =U37/'3. Indexes'!Q$23*'3. Indexes'!$D$23 -> 243926442.9 | V45: =V37/'3. Indexes'!R$23*'3. Indexes'!$D$23 -> 256161681.8 | W45: =W37/'3. Indexes'!S$23*'3. Indexes'!$D$23 -> 231007258.7 | X45: =X37/'3. Indexes'!T$23*'3. Indexes'!$D$23 -> 240421994.1
F47: Veranderingspercentages - taux de changement | G47: Groep - Groupe | H47: - | I47: =(I$45-H$45)/H$45 -> 0.01648338353 | J47: 0.04513656964 | K47: 0.00443689687 | L47: -0.01304948736 | M47: -0.01724819602 | N47: -0.01542433464 | O47: 0.001958456452 | P47: -0.02883572934 | Q47: -0.02567989989 | R47: 0.01079433539 | S47: 0.008706492816 | T47: =(T$45-S$45)/S$45 -> 0.03407474827 | U47: 0.0138313714 | V47: =(V$45-U$45)/U$45 -> 0.05015954293 | W47: =(W$45-V$45)/V$45 -> -0.09819744669 | X47: =(X$45-W$45)/W$45 -> 0.04075514942
D49: 1 De omzet wordt uitgedrukt in constante prijzen van 2007 op basis van de evolutie van de standaardkostprijs zoals berekend door de FBAA in overleg met de VVM
D50: Les chiffres d'affaires sont établis en prix constant de 2007 à base de l'évolution de prix de revient standard calculé par la FBAA en concertation avec la VVM
D51: 2 De omzet wordt uitgedrukt in constante prijzen van 2007 op basis van de index der consumptieprijzen zoals berekend door de FOD Economie
D52: Les chiffres d'affaires sont établis en prix constant de 2007 àsurbase de l'évolution de l'index des prix à la consommation publié par le SPF Economie

Sheet 1.2 VVM 2015 (hidden)
B2: Omzet voor rekening VMM - CdA pour la compte de la VVM
D3: 2015
E4: J | F4: F | G4: M | H4: A | I4: M | J4: J | K4: J | L4: A | M4: S | N4: O | O4: N | P4: D | Q4: TOTAL
C5: Omzet - Chiffre d'affaires (nominaal - nominale) | D5: Antwerpen - Anvers | E5: 5806000 | F5: 5359000 | G5: 5858000 | H5: 5505000 | I5: 5470000 | J5: 5768000 | K5: 5645000 | L5: 5525000 | M5: 5709000 | N5: 5820000 | O5: 5470000 | P5: 5776000 | Q5: =SUM(E5:P5) -> 67711000
C6: Omzet - Chiffre d'affaires (nominaal - nominale) | D6: Oost-Vlaanderen - Flandre Orientale | E6: 4550000 | F6: 4182000 | G6: 4671000 | H6: 4203000 | I6: 4214000 | J6: 4509000 | K6: 4015000 | L6: 3883000 | M6: 4679000 | N6: 4698000 | O6: 4313000 | P6: 4526000 | Q6: =SUM(E6:P6) -> 52443000
C7: Omzet - Chiffre d'affaires (nominaal - nominale) | D7: Vlaams Brabant - Brabant Flamand | E7: 5748000 | F7: 5454000 | G7: 5913000 | H7: 5641000 | I7: 5427000 | J7: 5778000 | K7: 5489000 | L7: 5402000 | M7: 5829000 | N7: 5918000 | O7: 5513000 | P7: 5849000 | Q7: 67961000
C8: Omzet - Chiffre d'affaires (nominaal - nominale) | D8: Limburg - Limbourg | E8: 4231000 | F8: 3967000 | G8: 4438000 | H8: 3994000 | I8: 3947000 | J8: 4224000 | K8: 3630000 | L8: 3600000 | M8: 4287000 | N8: 4334000 | O8: 3951000 | P8: 4417000 | Q8: 49020000
C9: Omzet - Chiffre d'affaires (nominaal - nominale) | D9: West-Vlaanderen - Flandre Occidentale | E9: 2890000 | F9: 2709000 | G9: 2962000 | H9: 2784000 | I9: 2752000 | J9: 2899000 | K9: 2690000 | L9: 2633000 | M9: 2944000 | N9: 2984000 | O9: 2794000 | P9: 2884000 | Q9: 33925000
C10: Omzet - Chiffre d'affaires (nominaal - nominale) | D10: Groep - Groupe | E10: 23225000 | F10: 21671000 | G10: 23842000 | H10: 22127000 | I10: 21809000 | J10: 23177000 | K10: =IF(K5="","",SUM(K5:K9)) -> 21469000 | L10: 21044000 | M10: 23448000 | N10: 23754000 | O10: 22041000 | P10: 23902000 | Q10: 271509000
C11: Omzet - Chiffre d'affaires (CPI-correctie - correction IPC) | D11: Antwerpen - Anvers | E11: =E5/'3. Indexes'!D$17*'3. Indexes'!$D$17 -> 5806000 | F11: =F5/'3. Indexes'!E$17*'3. Indexes'!$D$17 -> 5336880.69 | G11: =G5/'3. Indexes'!F$17*'3. Indexes'!$D$17 -> 5830196.292 | H11: =H5/'3. Indexes'!G$17*'3. Indexes'!$D$17 -> 5458385.786 | I11: =I5/'3. Indexes'!H$17*'3. Indexes'!$D$17 -> 5414943.655 | J11: =J5/'3. Indexes'!I$17*'3. Indexes'!$D$17 -> 5701297.767 | K11: =K5/'3. Indexes'!J$17*'3. Indexes'!$D$17 -> 5579720.162 | L11: =L5/'3. Indexes'!K$17*'3. Indexes'!$D$17 -> 5457340.469 | M11: =M5/'3. Indexes'!L$17*'3. Indexes'!$D$17 -> 5635412.807 | N11: =N5/'3. Indexes'!M$17*'3. Indexes'!$D$17 -> 5724996.64 | O11: =O5/'3. Indexes'!N$17*'3. Indexes'!$D$17 -> 5375216.706 | P11: =P5/'3. Indexes'!O$17*'3. Indexes'!$D$17 -> 5683006.102
C12: Omzet - Chiffre d'affaires (CPI-correctie - correction IPC) | D12: Oost-Vlaanderen - Flandre Orientale | E12: =E6/'3. Indexes'!D$17*'3. Indexes'!$D$17 -> 4550000 | F12: =F6/'3. Indexes'!E$17*'3. Indexes'!$D$17 -> 4164738.766 | G12: =G6/'3. Indexes'!F$17*'3. Indexes'!$D$17 -> 4648830.126 | H12: =H6/'3. Indexes'!G$17*'3. Indexes'!$D$17 -> 4167410.619 | I12: =I6/'3. Indexes'!H$17*'3. Indexes'!$D$17 -> 4171585.477 | J12: =J6/'3. Indexes'!I$17*'3. Indexes'!$D$17 -> 4456857.079 | K12: =K6/'3. Indexes'!J$17*'3. Indexes'!$D$17 -> 3968569.787 | L12: =L6/'3. Indexes'!K$17*'3. Indexes'!$D$17 -> 3835448.514 | M12: =M6/'3. Indexes'!L$17*'3. Indexes'!$D$17 -> 4618689.179 | N12: =N6/'3. Indexes'!M$17*'3. Indexes'!$D$17 -> 4621311.721 | O12: =O6/'3. Indexes'!N$17*'3. Indexes'!$D$17 -> 4238265.018 | P12: =P6/'3. Indexes'!O$17*'3. Indexes'!$D$17 -> 4453131.167
C13: Omzet - Chiffre d'affaires (CPI-correctie - correction IPC) | D13: Vlaams Brabant - Brabant Flamand | E13: =E7/'3. Indexes'!D$17*'3. Indexes'!$D$17 -> 5748000 | F13: =F7/'3. Indexes'!E$17*'3. Indexes'!$D$17 -> 5431488.577 | G13: =G7/'3. Indexes'!F$17*'3. Indexes'!$D$17 -> 5884935.246 | H13: =H7/'3. Indexes'!G$17*'3. Indexes'!$D$17 -> 5593234.19 | I13: =I7/'3. Indexes'!H$17*'3. Indexes'!$D$17 -> 5372376.456 | J13: =J7/'3. Indexes'!I$17*'3. Indexes'!$D$17 -> 5711182.125 | K13: =K7/'3. Indexes'!J$17*'3. Indexes'!$D$17 -> 5425524.175 | L13: =L7/'3. Indexes'!K$17*'3. Indexes'!$D$17 -> 5335846.735 | M13: =M7/'3. Indexes'!L$17*'3. Indexes'!$D$17 -> 5753866.045 | N13: =N7/'3. Indexes'!M$17*'3. Indexes'!$D$17 -> 5821396.927 | O13: =O7/'3. Indexes'!N$17*'3. Indexes'!$D$17 -> 5417471.608 | P13: =P7/'3. Indexes'!O$17*'3. Indexes'!$D$17 -> 5754830.798
C14: Omzet - Chiffre d'affaires (CPI-correctie - correction IPC) | D14: Limburg - Limbourg | E14: =E8/'3. Indexes'!D$17*'3. Indexes'!$D$17 -> 4231000 | F14: =F8/'3. Indexes'!E$17*'3. Indexes'!$D$17 -> 3950626.18 | G14: =G8/'3. Indexes'!F$17*'3. Indexes'!$D$17 -> 4416936.009 | H14: =H8/'3. Indexes'!G$17*'3. Indexes'!$D$17 -> 3960180.35 | I14: =I8/'3. Indexes'!H$17*'3. Indexes'!$D$17 -> 3907272.871 | J14: =J8/'3. Indexes'!I$17*'3. Indexes'!$D$17 -> 4175152.872 | K14: =K8/'3. Indexes'!J$17*'3. Indexes'!$D$17 -> 3588022 | L14: =L8/'3. Indexes'!K$17*'3. Indexes'!$D$17 -> 3555914.151 | M14: =M8/'3. Indexes'!L$17*'3. Indexes'!$D$17 -> 4231741.934 | N14: =N8/'3. Indexes'!M$17*'3. Indexes'!$D$17 -> 4263253.512 | O14: =O8/'3. Indexes'!N$17*'3. Indexes'!$D$17 -> 3882537.697 | P14: =P8/'3. Indexes'!O$17*'3. Indexes'!$D$17 -> 4345886.072
C15: Omzet - Chiffre d'affaires (CPI-correctie - correction IPC) | D15: West-Vlaanderen - Flandre Occidentale | E15: =E9/'3. Indexes'!D$17*'3. Indexes'!$D$17 -> 2890000 | F15: =F9/'3. Indexes'!E$17*'3. Indexes'!$D$17 -> 2697818.583 | G15: =G9/'3. Indexes'!F$17*'3. Indexes'!$D$17 -> 2947941.519 | H15: =H9/'3. Indexes'!G$17*'3. Indexes'!$D$17 -> 2760426.163 | I15: =I9/'3. Indexes'!H$17*'3. Indexes'!$D$17 -> 2724300.72 | J15: =J9/'3. Indexes'!I$17*'3. Indexes'!$D$17 -> 2865475.421 | K15: =K9/'3. Indexes'!J$17*'3. Indexes'!$D$17 -> 2658892.336 | L15: =L9/'3. Indexes'!K$17*'3. Indexes'!$D$17 -> 2600756.1 | M15: =M9/'3. Indexes'!L$17*'3. Indexes'!$D$17 -> 2906052.777 | N15: =N9/'3. Indexes'!M$17*'3. Indexes'!$D$17 -> 2935290.374 | O15: =O9/'3. Indexes'!N$17*'3. Indexes'!$D$17 -> 2745586.01 | P15: =P9/'3. Indexes'!O$17*'3. Indexes'!$D$17 -> 2837567.451
C16: Omzet - Chiffre d'affaires (CPI-correctie - correction IPC) | D16: Groep - Groupe | E16: =E10/'3. Indexes'!D$17*'3. Indexes'!$D$17 -> 23225000 | F16: =F10/'3. Indexes'!E$17*'3. Indexes'!$D$17 -> 21581552.8 | G16: =G10/'3. Indexes'!F$17*'3. Indexes'!$D$17 -> 23728839.19 | H16: =H10/'3. Indexes'!G$17*'3. Indexes'!$D$17 -> 21939637.11 | I16: =I10/'3. Indexes'!H$17*'3. Indexes'!$D$17 -> 21589489.24 | J16: =J10/'3. Indexes'!I$17*'3. Indexes'!$D$17 -> 22908976.83 | K16: =K10/'3. Indexes'!J$17*'3. Indexes'!$D$17 -> 21220728.46 | L16: =L10/'3. Indexes'!K$17*'3. Indexes'!$D$17 -> 20786293.72 | M16: =M10/'3. Indexes'!L$17*'3. Indexes'!$D$17 -> 23145762.74 | N16: =N10/'3. Indexes'!M$17*'3. Indexes'!$D$17 -> 23366249.17 | O16: =O10/'3. Indexes'!N$17*'3. Indexes'!$D$17 -> 21659077.04 | P16: =P10/'3. Indexes'!O$17*'3. Indexes'!$D$17 -> 23517176.57

Sheet 1.3 VVM 2016 (hidden)
B2: Omzet voor rekening VMM - CdA pour la compte de la VVM
D3: 2015
E4: J | F4: F | G4: M | H4: A | I4: M | J4: J | K4: J | L4: A | M4: S | N4: O | O4: N | P4: D | Q4: TOTAL
C5: Omzet - Chiffre d'affaires (nominaal - nominale) | D5: Antwerpen - Anvers | E5: 5450000 | F5: 5407000 | G5: 5838000 | H5: 5544000 | I5: 5591000 | J5: 5740000 | K5: 5361000 | L5: 5451000 | M5: 5705000 | N5: 5666000 | O5: 5605000 | P5: 5686000 | Q5: =SUM(E5:P5) -> 67044000
C6: Omzet - Chiffre d'affaires (nominaal - nominale) | D6: Oost-Vlaanderen - Flandre Orientale | E6: 4247000 | F6: 4433000 | G6: 4525000 | H6: 4292000 | I6: 4335000 | J6: 4351000 | K6: 3858000 | L6: 3932000 | M6: 4539000 | N6: 4485000 | O6: 4295000 | P6: 4731000 | Q6: =SUM(E6:P6) -> 52023000
C7: Omzet - Chiffre d'affaires (nominaal - nominale) | D7: Vlaams Brabant - Brabant Flamand | E7: 5410000 | F7: 5793000 | G7: 5805000 | H7: 5646000 | I7: 5602000 | J7: 5729000 | K7: 5477000 | L7: 5457000 | M7: 5895000 | N7: 5831000 | O7: 5616000 | P7: 5943000 | Q7: 68204000
C8: Omzet - Chiffre d'affaires (nominaal - nominale) | D8: Limburg - Limbourg | E8: 4070000 | F8: 4033000 | G8: 4211000 | H8: 4129000 | I8: 4067000 | J8: 4071000 | K8: 3523000 | L8: 3696000 | M8: 4276000 | N8: 4210000 | O8: 3991000 | P8: 4235000 | Q8: 48512000
C9: Omzet - Chiffre d'affaires (nominaal - nominale) | D9: West-Vlaanderen - Flandre Occidentale | E9: 2832000 | F9: 2777000 | G9: 2923000 | H9: 2830000 | I9: 2815000 | J9: 2930000 | K9: 2603000 | L9: 2683000 | M9: 2930000 | N9: 2941000 | O9: 2805000 | P9: 2904000 | Q9: 33973000
C10: Omzet - Chiffre d'affaires (nominaal - nominale) | D10: Groep - Groupe | E10: 22007000 | F10: 22443000 | G10: 23302000 | H10: 22440000 | I10: 22411000 | J10: 22821000 | K10: 20822000 | L10: =IF(L5="","",SUM(L5:L9)) -> 21219000 | M10: 23345000 | N10: 23133000 | O10: =IF(O5="","",SUM(O5:O9)) -> 22312000 | P10: =IF(P5="","",SUM(P5:P9)) -> 23499000 | Q10: =SUM(E10:P10) -> 269754000

Sheet 2.1 SRWT - 2007-2023
B2: Cijfers geregelde diensten - Statistiques services réguliers (SRWT)
D4: Variabele | G4: Onderdeel | H4: Année
H5: 2010 | I5: 2011 | J5: 2012 | K5: 2013 | L5: 2014 | M5: 2015 | N5: 2016 | O5: 2017 | P5: 2018 | Q5: 2019 | R5: 2020 | S5: 2021 | T5: 2022 | U5: 2023
E6: Voertuigen - Véhicules | G6: Henegouwen - Hainaut | H6: 84 | I6: 86 | J6: 87 | K6: 89 | L6: 88 | M6: 88 | N6: 88 | O6: 89 | P6: 88 | Q6: 80 | R6: 83 | S6: 90 | T6: 108 | U6: 112
G7: Nam/Lux | H7: 223 | I7: 232 | J7: 237 | K7: 236 | L7: 236 | M7: 236 | N7: 236 | O7: 238 | P7: 238 | Q7: 202 | R7: 210 | S7: 225 | T7: 266 | U7: 274
G8: Liège/Verviers - Luik/Verviers | H8: 179 | I8: 181 | J8: 183 | K8: 186 | L8: 185 | M8: 187 | N8: 191 | O8: 192 | P8: 189 | Q8: 186 | R8: 189 | S8: 194 | T8: 230 | U8: 219
G9: Waals Brabant - Brabant Wallon | H9: 96 | I9: 98 | J9: 98 | K9: 98 | L9: 103 | M9: 104 | N9: 100 | O9: 108 | P9: 112 | Q9: 99 | R9: 90 | S9: 100 | T9: 116 | U9: 116
G10: Charleroi | H10: 24 | I10: 24 | J10: 24 | K10: 25 | L10: 24 | M10: 30 | N10: 24 | O10: 24 | P10: 24 | Q10: 25 | R10: 25 | S10: 27 | T10: 33 | U10: 33
G11: Groep - Groupe | H11: 606 | I11: 621 | J11: 629 | K11: 634 | L11: 636 | M11: 645 | N11: 639 | O11: =SUM(O6:O10) -> 651 | P11: 651 | Q11: 592 | R11: 597 | S11: 636 | T11: 753 | U11: =SUM(U6:U10) -> 754
E12: Schatting van het aantal VTE's - Estimation du nombre d'ETP's1 | G12: Henegouwen - Hainaut | H12: =H6*1.59 -> 133.56 | I12: =I6*1.59 -> 136.74 | J12: 138.33 | K12: 141.51 | L12: 139.92 | M12: =M6*1.59 -> 139.92 | N12: 139.92 | O12: 141.51 | P12: 139.92 | Q12: 127.2 | R12: 131.97 | S12: =S6*1.59 -> 143.1 | T12: 171.72 | U12: 178.08
G13: Nam/Lux | H13: =H7*1.59 -> 354.57 | I13: 368.88 | J13: 376.83 | K13: 375.24 | L13: 375.24 | M13: =M7*1.59 -> 375.24 | N13: =N7*1.59 -> 375.24 | O13: =O7*1.59 -> 378.42 | P13: =P7*1.59 -> 378.42 | Q13: =Q7*1.59 -> 321.18 | R13: =R7*1.59 -> 333.9 | S13: 357.75 | T13: 422.94 | U13: 435.66
G14: Liège/Verviers - Luik/Verviers | H14: 284.61 | I14: 287.79 | J14: 290.97 | K14: 295.74 | L14: 294.15 | M14: =M8*1.59 -> 297.33 | N14: 303.69 | O14: 305.28 | P14: =P8*1.59 -> 300.51 | Q14: 295.74 | R14: =R8*1.59 -> 300.51 | S14: 308.46 | T14: =T8*1.59 -> 365.7 | U14: 348.21
G15: Waals Brabant - Brabant Wallon | H15: 152.64 | I15: 155.82 | J15: 155.82 | K15: 155.82 | L15: 163.77 | M15: =M9*1.59 -> 165.36 | N15: 159 | O15: 171.72 | P15: =P9*1.59 -> 178.08 | Q15: 157.41 | R15: =R9*1.59 -> 143.1 | S15: 159 | T15: 184.44 | U15: 184.44
G16: Charleroi | H16: 38.16 | I16: 38.16 | J16: 38.16 | K16: 39.75 | L16: 38.16 | M16: =M10*1.59 -> 47.7 | N16: 38.16 | O16: 38.16 | P16: =P10*1.59 -> 38.16 | Q16: 39.75 | R16: =R10*1.59 -> 39.75 | S16: 42.93 | T16: 52.47 | U16: 52.47
G17: Groep - Groupe | H17: 963.54 | I17: 987.39 | J17: 1000.11 | K17: 1008.06 | L17: 1011.24 | M17: =M11*1.59 -> 1025.55 | N17: 1016.01 | O17: 1035.09 | P17: =P11*1.59 -> 1035.09 | Q17: 941.28 | R17: =R11*1.59 -> 949.23 | S17: =S11*1.59 -> 1011.24 | T17: 1197.27 | U17: =U11*1.59 -> 1198.86
E18: Veranderingspercentages - taux de changement | G18: Henegouwen - Hainaut | H18: - | I18: =(I12-H12)/H12 -> 0.02380952381 | J18: =(J12-I12)/I12 -> 0.01162790698 | K18: =(K12-J12)/J12 -> 0.02298850575 | L18: -0.01123595506 | M18: 0 | N18: 0 | O18: 0.01136363636 | P18: =(P12-O12)/O12 -> -0.01123595506 | Q18: -0.09090909091 | R18: 0.0375 | S18: 0.0843373494 | T18: 0.2 | U18: 0.03703703704
G19: Nam/Lux | H19: - | I19: =(I13-H13)/H13 -> 0.04035874439 | J19: =(J13-I13)/I13 -> 0.02155172414 | K19: =(K13-J13)/J13 -> -0.004219409283 | L19: =(L13-K13)/K13 -> 0 | M19: 0 | N19: 0 | O19: 0.008474576271 | P19: 0 | Q19: -0.1512605042 | R19: 0.0396039604 | S19: 0.07142857143 | T19: =(T13-S13)/S13 -> 0.1822222222 | U19: 0.03007518797
G20: Liège/Verviers - Luik/Verviers | H20: - | I20: 0.01117318436 | J20: 0.01104972376 | K20: 0.01639344262 | L20: -0.005376344086 | M20: 0.01081081081 | N20: =(N14-M14)/M14 -> 0.02139037433 | O20: 0.005235602094 | P20: -0.015625 | Q20: -0.01587301587 | R20: 0.01612903226 | S20: 0.02645502646 | T20: 0.1855670103 | U20: -0.04782608696
G21: Waals Brabant - Brabant Wallon | H21: - | I21: 0.02083333333 | J21: 0 | K21: 0 | L21: 0.05102040816 | M21: 0.009708737864 | N21: -0.03846153846 | O21: 0.08 | P21: 0.03703703704 | Q21: -0.1160714286 | R21: -0.09090909091 | S21: 0.1111111111 | T21: 0.16 | U21: 0
G22: Charleroi | H22: - | I22: 0 | J22: 0 | K22: 0.04166666667 | L22: -0.04 | M22: 0.25 | N22: -0.2 | O22: 0 | P22: 0 | Q22: 0.04166666667 | R22: 0 | S22: 0.08 | T22: 0.2222222222 | U22: 0
G23: Groep - Groupe | H23: - | I23: 0.02475247525 | J23: 0.01288244767 | K23: 0.007949125596 | L23: 0.003154574132 | M23: 0.0141509434 | N23: -0.009302325581 | O23: 0.01877934272 | P23: 0 | Q23: -0.09062980031 | R23: 0.008445945946 | S23: 0.06532663317 | T23: 0.1839622642 | U23: 0.001328021248
D24: Afgelegde kilometers - Kilomètres parcourus | E24: Brutocijfers - Chiffres Brut | G24: Henegouwen - Hainaut | H24: 4659640 | I24: 4855738 | J24: 4897222 | K24: 4815823 | L24: 4757143 | M24: 4789425 | N24: 4871549 | O24: 4868860 | P24: 4920281 | Q24: 4969667 | R24: 4718468 | S24: 5293009 | T24: 5340620 | U24: 5348018
G25: Nam/Lux | H25: 10693459 | I25: 10792678 | J25: 10659858 | K25: 10458780 | L25: 10335990 | M25: 10714927 | N25: 10743261 | O25: 10575597 | P25: 10516009 | Q25: 10590048 | R25: 9803749 | S25: 11532262 | T25: 12066236 | U25: 12391422
G26: Liège/Verviers - Luik/Verviers | H26: 9054916 | I26: 9164813 | J26: 9230777 | K26: 9213158 | L26: 9404829 | M26: 9475672 | N26: 9524527 | O26: 9482971 | P26: 9585932 | Q26: 9716724 | R26: 9346828 | S26: 10204177 | T26: 10822911 | U26: 10876311
G27: Waals Brabant - Brabant Wallon | H27: 4492549 | I27: 4610772 | J27: 4674957 | K27: 4610650 | L27: 4655900 | M27: 4698444 | N27: 4762875 | O27: 4768593 | P27: 4914511 | Q27: 5041519 | R27: 5015396 | S27: 5419342 | T27: 5529237 | U27: 5720875
G28: Charleroi | H28: 2005528 | I28: 2160575 | J28: 2111890 | K28: 2089200 | L28: 2082325 | M28: 2073703 | N28: 2071264 | O28: 2042338 | P28: 2073063 | Q28: 2059351 | R28: 1942654 | S28: 2277913 | T28: 2173841 | U28: 2188837
G29: Groep - Groupe | H29: 30906092 | I29: 31584576 | J29: 31574704 | K29: 31187611 | L29: 31236187 | M29: 31752171 | N29: 31964002 | O29: 31738359 | P29: 32009796 | Q29: 32377309 | R29: 30827095 | S29: 34726703 | T29: =SUM(T24:T28) -> 35932845 | U29: =SUM(U24:U28) -> 36525463
E30: Veranderingspercentages - taux de changement | G30: Henegouwen - Hainaut | H30: - | I30: =(I24-H24)/H24 -> 0.04208436703 | J30: =(J24-I24)/I24 -> 0.008543294552 | K30: -0.01662146417 | L30: -0.01218483321 | M30: =(M24-L24)/L24 -> 0.006786005802 | N30: 0.01714694353 | O30: -0.0005519804892 | P30: =(P24-O24)/O24 -> 0.01056119913 | Q30: 0.01003723161 | R30: -0.05054644506 | S30: 0.1217643099 | T30: 0.008995072557 | U30: 0.001385232426
G31: Nam/Lux | H31: - | I31: =(I25-H25)/H25 -> 0.009278475749 | J31: -0.01230649149 | K31: -0.01886310305 | L31: -0.01174037507 | M31: 0.03666189693 | N31: 0.002644348394 | O31: -0.01560643458 | P31: -0.005634480966 | Q31: 0.007040598767 | R31: -0.07424886082 | S31: =(S25-R25)/R25 -> 0.1763114294 | T31: =(T25-S25)/S25 -> 0.04630262476 | U31: 0.02695007789
G32: Liège/Verviers - Luik/Verviers | H32: - | I32: 0.0121367222 | J32: 0.007197528198 | K32: -0.001908723393 | L32: 0.02080405003 | M32: 0.007532619679 | N32: 0.005155834858 | O32: -0.00436305131 | P32: 0.01085746229 | Q32: 0.01364416105 | R32: -0.03806797435 | S32: 0.09172619845 | T32: 0.0606353653 | U32: 0.004933977559
G33: Waals Brabant - Brabant Wallon | H33: - | I33: 0.02631535015 | J33: 0.01392066231 | K33: -0.01375563454 | L33: 0.009814234435 | M33: 0.0091376533 | N33: 0.01371326337 | O33: 0.001200535391 | P33: 0.03059980166 | Q33: 0.02584346642 | R33: -0.005181573252 | S33: 0.08054119754 | T33: 0.02027829209 | U33: 0.03465903162
G34: Charleroi | H34: - | I34: 0.07730981567 | J34: -0.02253335339 | K34: -0.01074393079 | L34: -0.003290733295 | M34: -0.004140564033 | N34: -0.001176156856 | O34: -0.01396538539 | P34: 0.01504403287 | Q34: -0.006614367243 | R34: -0.05666688194 | S34: 0.1725778239 | T34: -0.04568743407 | U34: 0.006898388613
G35: Groep - Groupe | H35: - | I35: 0.02195308291 | J35: -0.0003125576231 | K35: -0.01225959236 | L35: 0.001557541551 | M35: 0.01651878957 | N35: 0.006671386344 | O35: -0.007059285004 | P35: 0.008552332526 | Q35: 0.01148126655 | R35: -0.04787964312 | S35: 0.1264993669 | T35: 0.03473240751 | U35: 0.01649237626
D36: Omzet - Chiffre d'affaires | E36: Nominaal - Nominal | F36: Brutocijfers - chiffres brut | G36: Henegouwen - Hainaut | H36: 13271345.99 | I36: 14036520.68 | J36: 14638016.94 | K36: 14560615.62 | L36: 14420571.45 | M36: 14577377 | N36: 14744631 | O36: 14592195.6 | P36: 14938207.59 | Q36: 15378273.46 | R36: 13538309.87 | S36: 13869449.06 | T36: 14550630.19 | U36: 16233269.16
G37: Nam/Lux | H37: 27599010.54 | I37: 28822947.67 | J37: 29316329.98 | K37: 29633566.63 | L37: 29673863.96 | M37: 30768966 | N37: 30696083 | O37: 30369368 | P37: 30959488.56 | Q37: 32246164.35 | R37: 29827584.37 | S37: 31353785.41 | T37: 33700763.21 | U37: 38777327.65
G38: Liège/Verviers - Luik/Verviers | H38: 25708643.23 | I38: 26925654.66 | J38: 27673769.22 | K38: 28065515.41 | L38: 28003984.27 | M38: 28449596 | N38: 28316374 | O38: 28119892.49 | P38: 29057493.56 | Q38: 30663735.94 | R38: 30208334.92 | S38: 30878527.16 | T38: 32524844.13 | U38: 36866538.35
G39: Waals Brabant - Brabant Wallon | H39: 12419390.44 | I39: 13114091.38 | J39: 13650071.2 | K39: 13820642.34 | L39: 13972257.33 | M39: 14234794 | N39: 14227094 | O39: 14266506.73 | P39: 14726735.74 | Q39: 15578630.84 | R39: 14529681.6 | S39: 14862285.34 | T39: 15505479.17 | U39: 17727442.68
G40: Charleroi | H40: 4086690.91 | I40: 4278052.99 | J40: 4371456.11 | K40: 4360599.59 | L40: 4396971.83 | M40: 4450301 | N40: 4414819 | O40: 4397097.35 | P40: 4413737.04 | Q40: 4722402.16 | R40: 4578940.78 | S40: 4578989.48 | T40: 5011194.02 | U40: 5630360.06
G41: Groep - Groupe | H41: 83085081.11 | I41: 87177267.38 | J41: 89649643.45 | K41: 90440939.59 | L41: 90467648.84 | M41: 92481034 | N41: 92399002 | O41: =SUM(O36:O40) -> 91745060.17 | P41: 94095662.49 | Q41: 98589206.75 | R41: 92682851.54 | S41: 95543036.45 | T41: 101292910.7 | U41: 115234937.9
F42: Veranderingspercentages - taux de changement | G42: Henegouwen - Hainaut | H42: - | I42: =(I36-H36)/H36 -> 0.05765614811 | J42: =(J36-I36)/I36 -> 0.04285223338 | K42: -0.005287691654 | L42: =(L36-K36)/K36 -> -0.009618011604 | M42: 0.01087374037 | N42: 0.0114735319 | O42: -0.01033836656 | P42: 0.02371212664 | Q42: =(Q36-P36)/P36 -> 0.02945908117 | R42: -0.1196469548 | S42: =(S36-R36)/R36 -> 0.02445941873 | T42: =(T36-S36)/S36 -> 0.04911378434 | U42: =(U36-T36)/T36 -> 0.1156402814
G43: Nam/Lux | H43: - | I43: =(I37-H37)/H37 -> 0.04434713803 | J43: 0.01711769093 | K43: 0.01082115839 | L43: 0.001359854199 | M43: =(M37-L37)/L37 -> 0.03690459866 | N43: =(N37-M37)/M37 -> -0.002368717883 | O43: =(O37-N37)/N37 -> -0.01064354042 | P43: =(P37-O37)/O37 -> 0.01943144026 | Q43: 0.04155998209 | R43: -0.07500364861 | S43: 0.05116743686 | T43: =(T37-S37)/S37 -> 0.07485468722 | U43: 0.1506364829
G44: Liège/Verviers - Luik/Verviers | H44: - | I44: 0.04733860979 | J44: 0.02778445202 | K44: 0.01415586677 | L44: -0.002192410832 | M44: 0.01591244038 | N44: -0.00468273785 | O44: -0.006938794847 | P44: 0.03334298203 | Q44: 0.05527807747 | R44: -0.01485145257 | S44: 0.02218567299 | T44: 0.05331591632 | U44: 0.1334885481
G45: Waals Brabant - Brabant Wallon | H45: - | I45: 0.05593679846 | J45: 0.04087052656 | K45: 0.01249598903 | L45: 0.01097018404 | M45: 0.01878985362 | N45: -0.0005409280949 | O45: 0.002770258635 | P45: 0.0322594044 | Q45: 0.05784683823 | R45: -0.06733256926 | S45: 0.02289133025 | T45: 0.04327691302 | U45: 0.1433018281
G46: Charleroi | H46: - | I46: 0.0468256798 | J46: 0.02183309095 | K46: -0.002483502002 | L46: 0.008341109806 | M46: 0.01212861307 | N46: -0.007972943853 | O46: -0.004014128326 | P46: 0.003784244167 | Q46: 0.06993282953 | R46: -0.03037889937 | S46: 1.063564749e-05 | T46: 0.09438862917 | U46: 0.123556589
G47: Groep - Groupe | H47: - | I47: 0.04925296113 | J47: 0.02836032998 | K47: 0.008826539733 | L47: 0.0002953225621 | M47: 0.02225530547 | N47: =(N41-M41)/M41 -> -0.0008870143039 | O47: -0.007077368974 | P47: 0.02562102325 | Q47: 0.04775506268 | R47: -0.05990874057 | S47: 0.03085991489 | T47: 0.06018098737 | U47: 0.1376407004
E48: SKP correctie - correction PRS2 | F48: Brutocijfers - chiffres brut | G48: Henegouwen - Hainaut | H48: =H36/'3. Indexes'!G$21*'3. Indexes'!$G$21 -> 13271345.99 | I48: =I36/'3. Indexes'!H$21*'3. Indexes'!$G$21 -> 13491248.82 | J48: =J36/'3. Indexes'!I$21*'3. Indexes'!$G$21 -> 13693836.34 | K48: =K36/'3. Indexes'!J$21*'3. Indexes'!$G$21 -> 13537392.69 | L48: =L36/'3. Indexes'!K$21*'3. Indexes'!$G$21 -> 13377859.97 | M48: =M36/'3. Indexes'!L$21*'3. Indexes'!$G$21 -> 13739608.78 | N48: =N36/'3. Indexes'!M$21*'3. Indexes'!$G$21 -> 14162333.36 | O48: =O36/'3. Indexes'!N$21*'3. Indexes'!$G$21 -> 13833094.66 | P48: =P36/'3. Indexes'!O$21*'3. Indexes'!$G$21 -> 13753396.08 | Q48: =Q36/'3. Indexes'!P$21*'3. Indexes'!$G$21 -> 12396884.37 | R48: =R36/'3. Indexes'!Q$21*'3. Indexes'!$G$21 -> 10964244.41 | S48: =S36/'3. Indexes'!R$21*'3. Indexes'!$G$21 -> 11232423.46 | T48: =T36/'3. Indexes'!S$21*'3. Indexes'!$G$21 -> 11201525 | U48: =U36/'3. Indexes'!T$21*'3. Indexes'!$G$21 -> 11217443
G49: Nam/Lux | H49: =H37/'3. Indexes'!G$21*'3. Indexes'!$G$21 -> 27599010.54 | I49: =I37/'3. Indexes'!H$21*'3. Indexes'!$G$21 -> 27703272.59 | J49: =J37/'3. Indexes'!I$21*'3. Indexes'!$G$21 -> 27425369.59 | K49: =K37/'3. Indexes'!J$21*'3. Indexes'!$G$21 -> 27551117.25 | L49: =L37/'3. Indexes'!K$21*'3. Indexes'!$G$21 -> 27528229.24 | M49: =M37/'3. Indexes'!L$21*'3. Indexes'!$G$21 -> 29000660.1 | N49: =N37/'3. Indexes'!M$21*'3. Indexes'!$G$21 -> 29483827.73 | O49: =O37/'3. Indexes'!N$21*'3. Indexes'!$G$21 -> 28789522.42 | P49: =P37/'3. Indexes'!O$21*'3. Indexes'!$G$21 -> 28503962.48 | Q49: =Q37/'3. Indexes'!P$21*'3. Indexes'!$G$21 -> 25994593.73 | R49: =R37/'3. Indexes'!Q$21*'3. Indexes'!$G$21 -> 24156407.14 | S49: =S37/'3. Indexes'!R$21*'3. Indexes'!$G$21 -> 25392428.58 | T49: =T37/'3. Indexes'!S$21*'3. Indexes'!$G$21 -> 25943889.48 | U49: =U37/'3. Indexes'!T$21*'3. Indexes'!$G$21 -> 26795740.18
G50: Liège/Verviers - Luik/Verviers | H50: =H38/'3. Indexes'!G$21*'3. Indexes'!$G$21 -> 25708643.23 | I50: =I38/'3. Indexes'!H$21*'3. Indexes'!$G$21 -> 25879683.07 | J50: =J38/'3. Indexes'!I$21*'3. Indexes'!$G$21 -> 25888757.2 | K50: =K38/'3. Indexes'!J$21*'3. Indexes'!$G$21 -> 26093258.21 | L50: =L38/'3. Indexes'!K$21*'3. Indexes'!$G$21 -> 25979093.92 | M50: =M38/'3. Indexes'!L$21*'3. Indexes'!$G$21 -> 26814585.31 | N50: =N38/'3. Indexes'!M$21*'3. Indexes'!$G$21 -> 27198098.63 | O50: =O38/'3. Indexes'!N$21*'3. Indexes'!$G$21 -> 26657066.92 | P50: =P38/'3. Indexes'!O$21*'3. Indexes'!$G$21 -> 26752822.63 | Q50: =Q38/'3. Indexes'!P$21*'3. Indexes'!$G$21 -> 24718951.04 | R50: =R38/'3. Indexes'!Q$21*'3. Indexes'!$G$21 -> 24464764.84 | S50: =S38/'3. Indexes'!R$21*'3. Indexes'!$G$21 -> 25007532.11 | T50: =T38/'3. Indexes'!S$21*'3. Indexes'!$G$21 -> 25038630.62 | U50: =U38/'3. Indexes'!T$21*'3. Indexes'!$G$21 -> 25475354.88
G51: Waals Brabant - Brabant Wallon | H51: =H39/'3. Indexes'!G$21*'3. Indexes'!$G$21 -> 12419390.44 | I51: =I39/'3. Indexes'!H$21*'3. Indexes'!$G$21 -> 12604652.81 | J51: =J39/'3. Indexes'!I$21*'3. Indexes'!$G$21 -> 12769615.02 | K51: =K39/'3. Indexes'!J$21*'3. Indexes'!$G$21 -> 12849419.79 | L51: =L39/'3. Indexes'!K$21*'3. Indexes'!$G$21 -> 12961962.19 | M51: =M39/'3. Indexes'!L$21*'3. Indexes'!$G$21 -> 13416714.18 | N51: =N39/'3. Indexes'!M$21*'3. Indexes'!$G$21 -> 13665235.03 | O51: =O39/'3. Indexes'!N$21*'3. Indexes'!$G$21 -> 13524348.46 | P51: =P39/'3. Indexes'!O$21*'3. Indexes'!$G$21 -> 13558696.95 | Q51: =Q39/'3. Indexes'!P$21*'3. Indexes'!$G$21 -> 12558398.42 | R51: =R39/'3. Indexes'!Q$21*'3. Indexes'!$G$21 -> 11767124.69 | S51: =S39/'3. Indexes'!R$21*'3. Indexes'!$G$21 -> 12036489.82 | T51: =T39/'3. Indexes'!S$21*'3. Indexes'!$G$21 -> 11936597.27 | U51: =U39/'3. Indexes'!T$21*'3. Indexes'!$G$21 -> 12249940.29
G52: Charleroi | H52: =H40/'3. Indexes'!G$21*'3. Indexes'!$G$21 -> 4086690.91 | I52: =I40/'3. Indexes'!H$21*'3. Indexes'!$G$21 -> 4111864.945 | J52: =J40/'3. Indexes'!I$21*'3. Indexes'!$G$21 -> 4089488.676 | K52: =K40/'3. Indexes'!J$21*'3. Indexes'!$G$21 -> 4054165.74 | L52: =L40/'3. Indexes'!K$21*'3. Indexes'!$G$21 -> 4079039.005 | M52: =M40/'3. Indexes'!L$21*'3. Indexes'!$G$21 -> 4194540.26 | N52: =N40/'3. Indexes'!M$21*'3. Indexes'!$G$21 -> 4240468.168 | O52: =O40/'3. Indexes'!N$21*'3. Indexes'!$G$21 -> 4168355.849 | P52: =P40/'3. Indexes'!O$21*'3. Indexes'!$G$21 -> 4063665.159 | Q52: =Q40/'3. Indexes'!P$21*'3. Indexes'!$G$21 -> 3806869.066 | R52: =R40/'3. Indexes'!Q$21*'3. Indexes'!$G$21 -> 3708337.772 | S52: =S40/'3. Indexes'!R$21*'3. Indexes'!$G$21 -> 3708377.212 | T52: =T40/'3. Indexes'!S$21*'3. Indexes'!$G$21 -> 3857772.093 | U52: =U40/'3. Indexes'!T$21*'3. Indexes'!$G$21 -> 3890666.903
G53: Groep - Groupe | H53: =H41/'3. Indexes'!G$21*'3. Indexes'!$G$21 -> 83085081.11 | I53: =I41/'3. Indexes'!H$21*'3. Indexes'!$G$21 -> 83790722.23 | J53: =J41/'3. Indexes'!I$21*'3. Indexes'!$G$21 -> 83867066.83 | K53: =K41/'3. Indexes'!J$21*'3. Indexes'!$G$21 -> 84085353.68 | L53: =L41/'3. Indexes'!K$21*'3. Indexes'!$G$21 -> 83926184.32 | M53: =M41/'3. Indexes'!L$21*'3. Indexes'!$G$21 -> 87166108.63 | N53: =N41/'3. Indexes'!M$21*'3. Indexes'!$G$21 -> 88749963.87 | O53: =O41/'3. Indexes'!N$21*'3. Indexes'!$G$21 -> 86972388.31 | P53: =P41/'3. Indexes'!O$21*'3. Indexes'!$G$21 -> 86632543.3 | Q53: =Q41/'3. Indexes'!P$21*'3. Indexes'!$G$21 -> 79475696.63 | R53: =R41/'3. Indexes'!Q$21*'3. Indexes'!$G$21 -> 75060878.85 | S53: =S41/'3. Indexes'!R$21*'3. Indexes'!$G$21 -> 77377251.18 | T53: =T41/'3. Indexes'!S$21*'3. Indexes'!$G$21 -> 77978414.46 | U53: =U41/'3. Indexes'!T$21*'3. Indexes'!$G$21 -> 79629145.25
F54: Veranderingspercentages - taux de changement | G54: Henegouwen - Hainaut | H54: - | I54: =(I48-H48)/H48 -> 0.01656974559 | J54: =(J48-I48)/I48 -> 0.01501621689 | K54: -0.0114243842 | L54: -0.01178459737 | M54: 0.0270408585 | N54: =(N48-M48)/M48 -> 0.03076685686 | O54: -0.02324748972 | P54: -0.005761442394 | Q54: =(Q48-P48)/P48 -> -0.09863103665 | R54: =(R48-Q48)/Q48 -> -0.1155645174 | S54: =(S48-R48)/R48 -> 0.02445941873 | T54: =(T48-S48)/S48 -> -0.002750827328 | U54: =(U48-T48)/T48 -> 0.001421056875
G55: Nam/Lux | H55: - | I55: =(I49-H49)/H49 -> 0.003777746025 | J55: -0.01003141409 | K55: 0.004585085282 | L55: -0.0008307470403 | M55: 0.05348803382 | N55: 0.01666057345 | O55: -0.0235486829 | P55: -0.009918884062 | Q55: -0.08803578647 | R55: -0.07071418798 | S55: 0.05116743686 | T55: =(T49-S49)/S49 -> 0.021717533 | U55: 0.03283434808
G56: Liège/Verviers - Luik/Verviers | H56: - | I56: 0.00665300911 | J56: 0.0003506277133 | K56: 0.0078992208 | L56: -0.004375241043 | M56: 0.0321601435 | N56: 0.01430241477 | O56: -0.01989226194 | P56: 0.003592132233 | Q56: -0.07602456073 | R56: -0.01028304979 | S56: 0.02218567299 | T56: 0.00124356556 | U56: 0.01744201845
G57: Waals Brabant - Brabant Wallon | H57: - | I57: 0.01491718692 | J57: 0.01308740618 | K57: 0.006249583372 | L57: 0.008758558988 | M57: 0.03508357583 | N57: 0.01852322737 | O57: -0.01030985313 | P57: 0.002539751753 | Q57: -0.07377541721 | R57: -0.06300753574 | S57: 0.02289133025 | T57: -0.008299143606 | U57: 0.02625061505
G58: Charleroi | H58: - | I58: 0.006160004739 | J58: -0.005441878463 | K58: -0.008637494478 | L58: 0.006135236188 | M58: 0.02831580064 | N58: 0.01094944982 | O58: -0.0170057447 | P58: -0.02511558367 | Q58: -0.06319322152 | R58: -0.02588250159 | S58: 1.063564749e-05 | T58: 0.04028578341 | U58: 0.008526893093
G59: Groep - Groupe | H59: - | I59: 0.008492994304 | J59: 0.00091113423 | K59: 0.002602772059 | L59: -0.001892949879 | M59: 0.03860445138 | N59: 0.01817053974 | O59: -0.02002902851 | P59: -0.003907504585 | Q59: -0.08261152681 | R59: -0.05554928073 | S59: 0.03085991489 | T59: 0.007769250889 | U59: 0.02116907353
E60: CPI-correctie - correction IPC3 | F60: Brutocijfers - chiffres brut | G60: Henegouwen - Hainaut | H60: =H36/'3. Indexes'!G$23*'3. Indexes'!$G$23 -> 13271345.99 | I60: =I36/'3. Indexes'!H$23*'3. Indexes'!$G$23 -> 13557787.31 | J60: =J36/'3. Indexes'!I$23*'3. Indexes'!$G$23 -> 13748487.3 | K60: =K36/'3. Indexes'!J$23*'3. Indexes'!$G$23 -> 13525355.85 | L60: =L36/'3. Indexes'!K$23*'3. Indexes'!$G$23 -> 13349879.23 | M60: =M36/'3. Indexes'!L$23*'3. Indexes'!$G$23 -> 13420144.2 | N60: =N36/'3. Indexes'!M$23*'3. Indexes'!$G$23 -> 13311582.99 | O60: =O36/'3. Indexes'!N$23*'3. Indexes'!$G$23 -> 12849265.8 | P60: =P36/'3. Indexes'!O$23*'3. Indexes'!$G$23 -> 12926037.29 | Q60: =Q36/'3. Indexes'!P$23*'3. Indexes'!$G$23 -> 13115018.56 | R60: =R36/'3. Indexes'!Q$23*'3. Indexes'!$G$23 -> 11475258.73 | S60: =S36/'3. Indexes'!R$23*'3. Indexes'!$G$23 -> 11476332.83 | T60: =T36/'3. Indexes'!S$23*'3. Indexes'!$G$23 -> 10986003.73 | U60: =U36/'3. Indexes'!T$23*'3. Indexes'!$G$23 -> 11778693.74
G61: Nam/Lux | H61: =H37/'3. Indexes'!G$23*'3. Indexes'!$G$23 -> 27599010.54 | I61: =I37/'3. Indexes'!H$23*'3. Indexes'!$G$23 -> 27839904.43 | J61: =J37/'3. Indexes'!I$23*'3. Indexes'!$G$23 -> 27534821.96 | K61: =K37/'3. Indexes'!J$23*'3. Indexes'!$G$23 -> 27526620.04 | L61: =L37/'3. Indexes'!K$23*'3. Indexes'!$G$23 -> 27470652.02 | M61: =M37/'3. Indexes'!L$23*'3. Indexes'!$G$23 -> 28326355.32 | N61: =N37/'3. Indexes'!M$23*'3. Indexes'!$G$23 -> 27712694.62 | O61: =O37/'3. Indexes'!N$23*'3. Indexes'!$G$23 -> 26741971.69 | P61: =P37/'3. Indexes'!O$23*'3. Indexes'!$G$23 -> 26789258.43 | Q61: =Q37/'3. Indexes'!P$23*'3. Indexes'!$G$23 -> 27500424.22 | R61: =R37/'3. Indexes'!Q$23*'3. Indexes'!$G$23 -> 25282273.13 | S61: =S37/'3. Indexes'!R$23*'3. Indexes'!$G$23 -> 25943819.05 | T61: =T37/'3. Indexes'!S$23*'3. Indexes'!$G$23 -> 25444719.94 | U61: =U37/'3. Indexes'!T$23*'3. Indexes'!$G$23 -> 28136431.54
G62: Liège/Verviers - Luik/Verviers | H62: =H38/'3. Indexes'!G$23*'3. Indexes'!$G$23 -> 25708643.23 | I62: =I38/'3. Indexes'!H$23*'3. Indexes'!$G$23 -> 26007321.01 | J62: =J38/'3. Indexes'!I$23*'3. Indexes'!$G$23 -> 25992077.08 | K62: =K38/'3. Indexes'!J$23*'3. Indexes'!$G$23 -> 26070057.26 | L62: =L38/'3. Indexes'!K$23*'3. Indexes'!$G$23 -> 25924756.82 | M62: =M38/'3. Indexes'!L$23*'3. Indexes'!$G$23 -> 26191109.74 | N62: =N38/'3. Indexes'!M$23*'3. Indexes'!$G$23 -> 25564272.34 | O62: =O38/'3. Indexes'!N$23*'3. Indexes'!$G$23 -> 24761179.39 | P62: =P38/'3. Indexes'!O$23*'3. Indexes'!$G$23 -> 25143461.36 | Q62: =Q38/'3. Indexes'!P$23*'3. Indexes'!$G$23 -> 26150885.34 | R62: =R38/'3. Indexes'!Q$23*'3. Indexes'!$G$23 -> 25605002.56 | S62: =S38/'3. Indexes'!R$23*'3. Indexes'!$G$23 -> 25550564.65 | T62: =T38/'3. Indexes'!S$23*'3. Indexes'!$G$23 -> 24556878.58 | U62: =U38/'3. Indexes'!T$23*'3. Indexes'!$G$23 -> 26749982.4
G63: Waals Brabant - Brabant Wallon | H63: =H39/'3. Indexes'!G$23*'3. Indexes'!$G$23 -> 12419390.44 | I63: =I39/'3. Indexes'!H$23*'3. Indexes'!$G$23 -> 12666818.64 | J63: =J39/'3. Indexes'!I$23*'3. Indexes'!$G$23 -> 12820577.49 | K63: =K39/'3. Indexes'!J$23*'3. Indexes'!$G$23 -> 12837994.67 | L63: =L39/'3. Indexes'!K$23*'3. Indexes'!$G$23 -> 12934851.34 | M63: =M39/'3. Indexes'!L$23*'3. Indexes'!$G$23 -> 13104757.33 | N63: =N39/'3. Indexes'!M$23*'3. Indexes'!$G$23 -> 12844346.02 | O63: =O39/'3. Indexes'!N$23*'3. Indexes'!$G$23 -> 12562478.06 | P63: =P39/'3. Indexes'!O$23*'3. Indexes'!$G$23 -> 12743050.61 | Q63: =Q39/'3. Indexes'!P$23*'3. Indexes'!$G$23 -> 13285888.9 | R63: =R39/'3. Indexes'!Q$23*'3. Indexes'!$G$23 -> 12315559.12 | S63: =S39/'3. Indexes'!R$23*'3. Indexes'!$G$23 -> 12297859.3 | T63: =T39/'3. Indexes'!S$23*'3. Indexes'!$G$23 -> 11706932.94 | U63: =U39/'3. Indexes'!T$23*'3. Indexes'!$G$23 -> 12862850.73
G64: Charleroi | H64: =H40/'3. Indexes'!G$23*'3. Indexes'!$G$23 -> 4086690.91 | I64: =I40/'3. Indexes'!H$23*'3. Indexes'!$G$23 -> 4132144.559 | J64: =J40/'3. Indexes'!I$23*'3. Indexes'!$G$23 -> 4105809.485 | K64: =K40/'3. Indexes'!J$23*'3. Indexes'!$G$23 -> 4050560.959 | L64: =L40/'3. Indexes'!K$23*'3. Indexes'!$G$23 -> 4070507.408 | M64: =M40/'3. Indexes'!L$23*'3. Indexes'!$G$23 -> 4097011.495 | N64: =N40/'3. Indexes'!M$23*'3. Indexes'!$G$23 -> 3985737.554 | O64: =O40/'3. Indexes'!N$23*'3. Indexes'!$G$23 -> 3871896.605 | P64: =P40/'3. Indexes'!O$23*'3. Indexes'!$G$23 -> 3819208.511 | Q64: =Q40/'3. Indexes'!P$23*'3. Indexes'!$G$23 -> 4027395.672 | R64: =R40/'3. Indexes'!Q$23*'3. Indexes'!$G$23 -> 3881173.547 | S64: =S40/'3. Indexes'!R$23*'3. Indexes'!$G$23 -> 3788903.731 | T64: =T40/'3. Indexes'!S$23*'3. Indexes'!$G$23 -> 3783547.204 | U64: =U40/'3. Indexes'!T$23*'3. Indexes'!$G$23 -> 4085331.557
G65: Groep - Groupe | H65: =H41/'3. Indexes'!G$23*'3. Indexes'!$G$23 -> 83085081.11 | I65: =I41/'3. Indexes'!H$23*'3. Indexes'!$G$23 -> 84203975.95 | J65: =J41/'3. Indexes'!I$23*'3. Indexes'!$G$23 -> 84201773.31 | K65: =K41/'3. Indexes'!J$23*'3. Indexes'!$G$23 -> 84010588.79 | L65: =L41/'3. Indexes'!K$23*'3. Indexes'!$G$23 -> 83750646.81 | M65: =M41/'3. Indexes'!L$23*'3. Indexes'!$G$23 -> 85139378.08 | N65: =N41/'3. Indexes'!M$23*'3. Indexes'!$G$23 -> 83418634.42 | O65: =O41/'3. Indexes'!N$23*'3. Indexes'!$G$23 -> 80786791.54 | P65: =P41/'3. Indexes'!O$23*'3. Indexes'!$G$23 -> 81421016.2 | Q65: =Q41/'3. Indexes'!P$23*'3. Indexes'!$G$23 -> 84079612.7 | R65: =R41/'3. Indexes'!Q$23*'3. Indexes'!$G$23 -> 78559267.08 | S65: =S41/'3. Indexes'!R$23*'3. Indexes'!$G$23 -> 79057479.56 | T65: =T41/'3. Indexes'!S$23*'3. Indexes'!$G$23 -> 76478082.39 | U65: =U41/'3. Indexes'!T$23*'3. Indexes'!$G$23 -> 83613289.97
F66: Veranderingspercentages - taux de changement | G66: Henegouwen - Hainaut | H66: - | I66: =(I60-H60)/H60 -> 0.0215834418 | J66: =(J60-I60)/I60 -> 0.01406571571 | K66: -0.01622952705 | L66: -0.01297390034 | M66: 0.005263341023 | N66: =(N60-M60)/M60 -> -0.008089422018 | O66: -0.03473044397 | P66: 0.005974776331 | Q66: 0.01462020165 | R66: -0.1250291662 | S66: =(S60-R60)/R60 -> 9.360144812e-05 | T66: =(T60-S60)/S60 -> -0.04272524238 | U66: =(U60-T60)/T60 -> 0.07215453697
G67: Nam/Lux | H67: - | I67: =(I61-H61)/H61 -> 0.008728352417 | J67: -0.01095845969 | K67: -0.0002978743566 | L67: -0.00203323281 | M67: 0.03114972675 | N67: -0.02166394824 | O67: -0.03502809625 | P67: 0.001768259273 | Q67: 0.02654667717 | R67: -0.08065879557 | S67: 0.02616639414 | T67: =(T61-S61)/S61 -> -0.01923768847 | U67: 0.1057866465
G68: Liège/Verviers - Luik/Verviers | H68: - | I68: 0.01161779623 | J68: -0.000586140033 | K68: 0.003000152232 | L68: -0.005573461065 | M68: 0.01027407599 | N68: -0.02393321264 | O68: -0.03141466112 | P68: 0.01543876269 | Q68: 0.0400670365 | R68: -0.0208743518 | S68: -0.002126065361 | T68: -0.03889096346 | U68: 0.08930710883
G69: Waals Brabant - Brabant Wallon | H69: - | I69: 0.01992273275 | J69: 0.01213871121 | K69: 0.001358533153 | L69: 0.007544532628 | M69: 0.01313551945 | N69: -0.01987150981 | O69: -0.02194490557 | P69: 0.01437395967 | Q69: 0.04259877051 | R69: -0.07303461487 | S69: -0.001437191496 | T69: -0.04805115617 | U69: 0.09873788397
G70: Charleroi | H70: - | I70: 0.01112236037 | J70: -0.006373221878 | K70: -0.01345618348 | L70: 0.004924366958 | M70: 0.006511249111 | N70: -0.02715978263 | O70: -0.02856207852 | P70: -0.01360782564 | Q70: 0.05451055132 | R70: -0.0363068685 | S70: -0.02377369 | T70: -0.001413740465 | U70: 0.07976228048
G71: Groep - Groupe | H71: - | I71: 0.01346685618 | J71: -2.615839675e-05 | K71: -0.002270552204 | L71: -0.003094157303 | M71: 0.01658173787 | N71: -0.02021090235 | O71: -0.03154981983 | P71: 0.007850598444 | Q71: 0.03265246032 | R71: =(R65-Q65)/Q65 -> -0.06565617322 | S71: =(S65-R65)/R65 -> 0.00634186774 | T71: -0.03262685815 | U71: 0.09329741739
D72: 1 Des chiffres fiables sur le nombre d'ETPs ne sont pas disponibles. Le chiffres présentés sont estimé à la base du nombre de véhicules et un taux véhicule-ETM estimé.
D73: Betrouwbare cijfers over het aantal ETP's zijn niet voorhanden. de cijfers wwerden daarom geschat op basis van het aantal voertuigen en een geschatte verhouding voertuigen-VTE's
D74: 2 Les chiffres d'affaires sont établis en prix constant de 2007 à base de l'évolution de prix de revient standard calculé par la FBAA en concertation avec la SRWT
D75: De omzet wordt uitgedrukt in constante prijzen van 2010 op basis van de evolutie van de standaardkostprijs zoals berekend door de FBAA in overleg met de SRWT
D76: 3 Les chiffres d'affaires sont établis en prix constant de 2007 à base de l'évolution de l'index des prix à la consommation publié par le SPF Economie
D77: De omzet wordt uitgedrukt in constante prijzen van 2010 op basis van de index der consumptieprijzen zoals berekend door de FOD Economie

Sheet 2.2 SRWT 2015 (hidden)
B2: Omzet voor rekening VMM - CdA pour la compte de la VVM
D3: 2015
E4: J | F4: F | G4: M | H4: A | I4: M | J4: J | K4: J | L4: A | M4: S | N4: O | O4: N | P4: D | Q4: TOTAL
C5: Omzet - Chiffre d'affaires (nominaal - nominale) | D5: Henegouwen - Hainaut | E5: 1205910.01 | F5: 1175475.79 | G5: 1271528.34 | H5: 1198009.63 | I5: 1125506.64 | J5: 1315546.34 | K5: 1140321 | L5: 1122242.19 | M5: 1263240.25 | N5: 1272741 | O5: 1165666 | P5: 1321189 | Q5: 14577377
C6: Omzet - Chiffre d'affaires (nominaal - nominale) | D6: Nam/Lux | E6: 2657016.63 | F6: 2408084.48 | G6: 2782940.08 | H6: 2506982.45 | I6: 2599207.02 | J6: 2852805.34 | K6: 2144314 | L6: 2124145.67 | M6: 2767363.85 | N6: 2809142 | O6: 2381954 | P6: 2735011 | Q6: 30768966
C7: Omzet - Chiffre d'affaires (nominaal - nominale) | D7: Liège/Verviers - Luik/Verviers | E7: 2507126.87 | F7: 2246354.13 | G7: 2555642.73 | H7: 2249108.07 | I7: 2322396.86 | J7: 2512169.47 | K7: 2087253 | L7: 2109774.01 | M7: 2545476.47 | N7: 2572464 | O7: 2279026 | P7: 2462804 | Q7: 28449596
C8: Omzet - Chiffre d'affaires (nominaal - nominale) | D8: Waals Brabant - Brabant Wallon | E8: 1244378.67 | F8: 1147206.78 | G8: 1281280.6 | H8: 1152295.2 | I8: 1126652.34 | J8: 1263453.73 | K8: 1073311 | L8: 1013995.99 | M8: 1290919.01 | N8: 1277653 | O8: 1155905 | P8: 1207742 | Q8: 14234794
C9: Omzet - Chiffre d'affaires (nominaal - nominale) | D9: Charleroi | E9: 393698.65 | F9: 357980.62 | G9: 401782.55 | H9: 365237.64 | I9: 362445.9 | J9: 401474.76 | K9: 314010 | L9: 309507.53 | M9: 391408.95 | N9: 400595 | O9: 363120 | P9: 389039 | Q9: 4450301
C10: Omzet - Chiffre d'affaires (nominaal - nominale) | D10: Groep - Groupe | E10: 8008130.83 | F10: 7335101.8 | G10: 8293174.3 | H10: 7471632.99 | I10: 7536208.76 | J10: 8345449.64 | K10: 6759210 | L10: 6679665.39 | M10: 8258408.53 | N10: 8332595 | O10: 7345672 | P10: 8115786 | Q10: 92481034

Sheet 2.2 SRWT 2016 (hidden)
B2: Omzet voor rekening VMM - CdA pour la compte de la VVM
D3: 2015
E4: J | F4: F | G4: M | H4: A | I4: M | J4: J | K4: J | L4: A | M4: S | N4: O | O4: N | P4: D | Q4: TOTAL
C5: Omzet - Chiffre d'affaires (nominaal - nominale) | D5: Henegouwen - Hainaut | E5: 1213962.21 | F5: 1231323.9 | G5: 1244653.27 | H5: 1237704.94 | I5: 1190209.56 | J5: 1324589.38 | K5: 1157273.74 | L5: 1189948 | M5: 1263380 | N5: 1209858 | O5: 1176147 | P5: 1305581 | Q5: 14744631
C6: Omzet - Chiffre d'affaires (nominaal - nominale) | D6: Nam/Lux | E6: 2591890.02 | F6: 2508747.67 | G6: 2550937.51 | H6: 2573217.72 | I6: 2601117.51 | J6: 2860144.56 | K6: 2078935.63 | L6: 2263666 | M6: 2748571 | N6: 2701711 | O6: 2489336 | P6: 2727809 | Q6: 30696083
C7: Omzet - Chiffre d'affaires (nominaal - nominale) | D7: Liège/Verviers - Luik/Verviers | E7: 2441976.59 | F7: 2341494.19 | G7: 2497544.37 | H7: 2379970.9 | I7: 2394478.8 | J7: 2506662.45 | K7: 1955192.76 | L7: 2092952 | M7: 2473483 | N7: 2475265 | O7: 2308088 | P7: 2449265 | Q7: 28316374
C8: Omzet - Chiffre d'affaires (nominaal - nominale) | D8: Waals Brabant - Brabant Wallon | E8: 1204080.19 | F8: 1191043.27 | G8: 1252678.81 | H8: 1194825.66 | I8: 1196238.16 | J8: 1255939.89 | K8: 1015965.69 | L8: 1060146 | M8: 1251085 | N8: 1218180 | O8: 1157338 | P8: 1229573 | Q8: 14227094
C9: Omzet - Chiffre d'affaires (nominaal - nominale) | D9: Charleroi | E9: 382737.31 | F9: 375174.04 | G9: 390981.82 | H9: 370989.21 | I9: 376652.16 | J9: 394891.85 | K9: 300464.3 | L9: 311704 | M9: 384846 | N9: 377667 | O9: 360560 | P9: 388153 | Q9: 4414819
C10: Omzet - Chiffre d'affaires (nominaal - nominale) | D10: Groep - Groupe | E10: 7834646.32 | F10: 7647783.07 | G10: 7936795.78 | H10: 7756708.43 | I10: 7758696.19 | J10: 8342228.13 | K10: 6507832.12 | L10: 6918416 | M10: 8121365 | N10: 7982682 | O10: 7491468 | P10: 8100381 | Q10: 92399002

Sheet 3. Indexes (hidden)
B2: Indexen - Indices
C4: Historische Standaardkostprijs en index-berekening - Prix de Revient Standard Historique et calcul de l'index
C5: Toepassingsdatum | D5: 2009-12-01 | E5: 2010-06-01 | F5: 2010-12-01 | G5: 2011-06-01 | H5: 2011-12-01 | I5: 2012-06-01 | J5: 2012-07-01 | K5: 2012-12-01 | L5: 2013-06-01 | M5: 2013-12-01 | N5: 2014-01-01 | O5: 2014-06-01 | P5: 2014-12-01 | Q5: 2015-06-01 | R5: 2015-12-01 | S5: 2016-06-01 | T5: 2016-12-01 | U5: 2017-06-01 | V5: 2017-12-01 | W5: 2018-06-01 | X5: 2018-12-01 | Y5: 2019-06-01 | Z5: 2019-12-01 | AA5: 2020-01-01 | AB5: 2021-01-01 | AC5: 2022-01-01 | AD5: 2023-01-01
C6: Standaardkostprijs TEC / km | D6: 2.9134 | E6: 2.9538 | F6: 3.0347 | G6: 3.0732 | H6: 3.1395 | I6: 3.2199 | J6: 3.1394 | K6: 3.1457 | L6: 3.1841 | M6: 3.1614 | N6: 3.1691 | O6: 3.1778 | P6: 3.1655 | Q6: 3.0936 | R6: 3.0893 | S6: 3.0417 | T6: 3.0802 | U6: 3.1158 | V6: 3.1672 | W6: 3.1922 | X6: 3.2533 | Y6: 3.6516 | Z6: 3.6516 | AA6: 3.6348 | AB6: 3.6348
C7: Index SK TEC | D7: =IF(D6="","",((D6/$D$6)*100)) -> 100 | E7: 101.386696 | F7: 104.1635203 | G7: 105.4850003 | H7: 107.760692 | I7: 110.5203542 | J7: 107.7572596 | K7: 107.9735018 | L7: 109.2915494 | M7: 108.512391 | N7: 108.776687 | O7: 109.0753072 | P7: 108.6531201 | Q7: =IF(Q6="","",((Q6/$D$6)*100)) -> 106.1852132 | R7: =R6/$D$6*100 -> 106.0376193 | S7: =S6/$D$6*100 -> 104.4037894 | T7: =T6/$D$6*100 -> 105.7252694 | U7: =U6/$D$6*100 -> 106.9472094 | V7: =V6/$D$6*100 -> 108.7114711 | W7: =W6/$D$6*100 -> 109.5695751 | X7: =X6/$D$6*100 -> 111.6667811 | Y7: =Y6/$D$6*100 -> 125.3380929 | Z7: =Z6/$D$6*100 -> 125.3380929 | AA7: =AA6/$D$6*100 -> 124.7614471 | AB7: =AB6/$D$6*100 -> 124.7614471 | AC7: 131.25 | AD7: 146.22
C9: Toepassingsdatum | D9: 2007-01-01 | E9: 2008-01-01 | F9: 2009-01-01 | G9: 2010-01-01 | H9: 2011-01-01 | I9: 2012-01-01 | J9: 2013-01-01 | K9: 2014-01-01 | L9: 2015-01-01 | M9: 2016-01-01 | N9: 2017-01-01 | O9: 2018-01-01 | P9: 2019-01-01 | Q9: 2020-01-01 | R9: 2021 | S9: 2022 | T9: 2023
C10: Standaardkostprijs VVM / km | D10: 2.856126 | E10: 3.002965 | F10: 3.097333 | G10: 3.163445 | H10: 3.285304 | I10: 3.414203 | J10: 3.497751 | K10: 3.506579 | L10: 3.40946 | M10: 3.350515 | N10: 3.4544 | O10: 3.5517 | P10: 3.6405 | Q10: 3.7325 | R10: 3.9266
C11: Index SK VVM | D11: =IF(D10="","",((D10/$D$10)*100)) -> 100 | E11: =IF(E10="","",((E10/$D$10)*100)) -> 105.1411948 | F11: =IF(F10="","",((F10/$D$10)*100)) -> 108.4452507 | G11: 110.7599945 | H11: 115.026578 | I11: 119.5396492 | J11: 122.4648702 | K11: 122.7739603 | L11: 119.3735851 | M11: 117.3097755 | N11: =IF(N10="","",((N10/$D$10)*100)) -> 120.9470451 | O11: =IF(O10="","",((O10/$D$10)*100)) -> 124.3537575 | P11: =IF(P10="","",((P10/$D$10)*100)) -> 127.462864 | Q11: =IF(Q10="","",((Q10/$D$10)*100)) -> 130.6840104 | R11: 130.68 | S11: 137.48 | T11: 153.16
C13: Maandindexen - Indices mensuels
C14: Toepassingsdatum | D14: 2015-01-01 | E14: 2015-02-01 | F14: 2015-03-01 | G14: 2015-04-01 | H14: 2015-05-01 | I14: 2015-06-01 | J14: 2015-07-01 | K14: 2015-08-01 | L14: 2015-09-01 | M14: 2015-10-01 | N14: 2015-11-01 | O14: 2015-12-01 | P14: 2016-01-01 | Q14: 2016-02-01 | R14: 2016-03-01 | S14: 2016-04-01 | T14: 2016-05-01 | U14: 2016-06-01 | V14: 2016-07-01 | W14: 2016-08-01 | X14: 2016-09-01 | Y14: 2016-10-01 | Z14: 2016-11-01 | AA14: 2016-12-01 | AB14: 2017-01-01 | AC14: 2017-02-01 | AD14: 2017-03-01 | AE14: 2017-04-01 | AF14: 2017-05-01 | AG14: 2017-06-01 | AH14: 2017-07-01 | AI14: 2017-08-01 | AJ14: 2017-09-01 | AK14: 2017-10-01 | AL14: 2017-11-01 | AM14: 2017-12-01 | AN14: 2018-01-01 | AO14: 2018-02-01 | AP14: 2018-03-01 | AQ14: 2018-04-01 | AR14: 2018-05-01 | AS14: 2018-06-01 | AT14: 2018-07-01 | AU14: 2018-08-01 | AV14: 2018-09-01 | AW14: 2018-10-01 | AX14: 2018-11-01 | AY14: 2018-12-01 | AZ14: 2019-01-01 | BA14: 2019-02-01 | BB14: 2019-03-01 | BC14: 2019-04-01 | BD14: 2019-05-01 | BE14: 2019-06-01 | BF14: 2019-07-01 | BG14: 2019-08-01 | BH14: 2019-09-01 | BI14: 2019-10-01 | BJ14: 2019-11-01 | BK14: 2019-12-01
C15: SKP - PRS | D15: 3.1655 | E15: 3.1655 | F15: 3.1655 | G15: 3.1655 | H15: 3.1655 | I15: 3.0936 | J15: 3.0936 | K15: 3.0936 | L15: 3.0936 | M15: 3.0936 | N15: 3.0936 | O15: 3.0893 | P15: 3.0893 | Q15: 3.0893 | R15: 3.0893 | S15: 3.0893 | T15: 3.0893 | U15: 3.0417 | V15: 3.0417 | W15: 3.0417 | X15: 3.0417 | Y15: 3.0417 | Z15: 3.0417 | AA15: =$T$6 -> 3.0802 | AB15: =$T$6 -> 3.0802 | AC15: =$T$6 -> 3.0802 | AD15: =$T$6 -> 3.0802 | AE15: 3.0802 | AF15: 3.0802 | AG15: =$U$6 -> 3.1158 | AH15: =$U$6 -> 3.1158 | AI15: 3.1158 | AJ15: 3.1158 | AK15: =$U$6 -> 3.1158 | AL15: 3.1158 | AM15: =3.1672 -> 3.1672 | AN15: =$W$6 -> 3.1922 | AO15: =$W$6 -> 3.1922 | AP15: 3.1922 | AQ15: 3.1922 | AR15: 3.1922 | AS15: 3.1922 | AT15: 3.1922 | AU15: 3.1922 | AV15: 3.1922 | AW15: 3.1922 | AX15: =$W$6 -> 3.1922 | AY15: 3.2533 | AZ15: =$Y$6 -> 3.6516 | BA15: =$Y$6 -> 3.6516 | BB15: 3.6516 | BC15: =$Y$6 -> 3.6516 | BD15: 3.6516 | BE15: 3.6516 | BF15: 3.6516 | BG15: 3.6516 | BH15: 3.6516 | BI15: 3.6516 | BJ15: 3.6516 | BK15: =$Y$6 -> 3.6516
C16: Index SK TEC | D16: =IF((D15=""),"",(D15/$D$6*100)) -> 108.6531201 | E16: =IF((E15=""),"",(E15/$D$6*100)) -> 108.6531201 | F16: 108.6531201 | G16: 108.6531201 | H16: 108.6531201 | I16: 106.1852132 | J16: 106.1852132 | K16: 106.1852132 | L16: 106.1852132 | M16: =IF((M15=""),"",(M15/$D$6*100)) -> 106.1852132 | N16: 106.1852132 | O16: =$R7 -> 106.0376193 | P16: =$R7 -> 106.0376193 | Q16: =$R7 -> 106.0376193 | R16: 106.0376193 | S16: 106.0376193 | T16: =$R7 -> 106.0376193 | U16: =$S7 -> 104.4037894 | V16: 104.4037894 | W16: =$S7 -> 104.4037894 | X16: 104.4037894 | Y16: 104.4037894 | Z16: 104.4037894 | AA16: =T7 -> 105.7252694 | AB16: =$T$7 -> 105.7252694 | AC16: =$T$7 -> 105.7252694 | AD16: 105.7252694 | AE16: 105.7252694 | AF16: =$T$7 -> 105.7252694 | AG16: =U7 -> 106.9472094 | AH16: =$AG$16 -> 106.9472094 | AI16: =$AG$16 -> 106.9472094 | AJ16: 106.9472094 | AK16: 106.9472094 | AL16: =$AG$16 -> 106.9472094 | AM16: 108.71 | AN16: =$W$7 -> 109.5695751 | AO16: =$W$7 -> 109.5695751 | AP16: 109.5695751 | AQ16: 109.5695751 | AR16: 109.5695751 | AS16: 109.5695751 | AT16: 109.5695751 | AU16: 109.5695751 | AV16: 109.5695751 | AW16: 109.5695751 | AX16: 109.5695751 | AY16: 111.67 | AZ16: 125.34 | BA16: 125.34 | BB16: 125.34 | BC16: 125.34 | BD16: 125.34 | BE16: 125.34 | BF16: 125.34 | BG16: 125.34 | BH16: 125.34 | BI16: 125.34 | BJ16: 125.34 | BK16: 125.34
C17: CPI (FOD Economie) | D17: 99.84620869 | E17: 100.2600327 | F17: 100.3223667 | G17: 100.698888 | H17: 100.8613933 | I17: 101.0143577 | J17: 101.0143577 | K17: 101.0840915 | L17: 101.15 | M17: 101.5031049 | N17: 101.6068359 | O17: 101.4800426 | P17: 101.5877421 | Q17: 101.6469987 | R17: 102.5738125 | S17: 102.7484388 | T17: 103.0759158 | U17: 103.1867374 | V17: 103.3097158 | W17: 103.2577992 | X17: 103.04 | Y17: 103.34 | Z17: 103.41 | AA17: 103.54
C19: Jaarindexen - Indices annuels
D20: 2007 | E20: 2008 | F20: 2009 | G20: 2010 | H20: 2011 | I20: 2012 | J20: 2013 | K20: 2014 | L20: 2015 | M20: 2016 | N20: 2017 | O20: 2018 | P20: 2019 | Q20: 2020 | R20: 2021 | S20: 2022 | T20: 2023
C21: Standaardkostprijs TEC | D21: - | E21: - | F21: - | G21: =(D7*5+E7*6+F7)/12 -> 101.040308 | H21: =(F7*5+G7*6+H7)/12 -> 105.1240246 | I21: =(H7*5+I7+J7*5+K7)/12 -> 108.0069678 | J21: =(K7*5+L7*6+M7)/12 -> 108.677433 | K21: =(N7*5+O7*6+P7)/12 -> 108.9156999 | L21: =IF(O16="","",(AVERAGE(D16:O16))) -> 107.2012082 | M21: =AVERAGE(P16:AA16) -> 105.1946752 | N21: =AVERAGE(AB16:AM16) -> 106.584967 | O21: =AVERAGE(AN16:AY16) -> 109.7446105 | P21: =AVERAGE(AZ16:BK16) -> 125.34 | Q21: =AA7 -> 124.7614471 | R21: =AB7 -> 124.7614471 | S21: =AC7 -> 131.25 | T21: 146.22
C22: Standaardkostprijs VVM | D22: =D11 -> 100 | E22: =E11 -> 105.1411948 | F22: =F11 -> 108.4452507 | G22: 110.7599945 | H22: 115.026578 | I22: 119.5396492 | J22: 122.4648702 | K22: 122.7739603 | L22: =L11 -> 119.3735851 | M22: =M11 -> 117.3097755 | N22: =N11 -> 120.9470451 | O22: =O11 -> 124.3537575 | P22: =P11 -> 127.462864 | Q22: 130.68 | R22: =R11 -> 130.68 | S22: =S11 -> 137.48 | T22: 153.16
C23: CPI (FOD Economie) | D23: 87.04 | E23: 90.95 | F23: 90.9 | G23: 92.89 | H23: 96.17 | I23: 98.9 | J23: 100 | K23: 100.34 | L23: 100.9 | M23: 102.89 | N23: 105.49 | O23: 107.35 | P23: 108.92 | Q23: 109.59 | R23: 112.26 | S23: 123.03 | T23: 128.02
